[Event "44th Chess Olympiad Women 2022"]
[Site "Chennai"]
[Date "2022.08.03"]
[Round "6.47"]
[White "Bwalya Mulwale, Lubuuto"]
[Black "Heba, Assi"]
[Result "1-0"]
[WhiteElo "1751"]
[BlackElo "1449"]
[Annotator "NA RC"]
[PlyCount "103"]
[EventDate "2022.??.??"]
[TimeControl "60"]

1. c4 {[%emt 0:00:05]} Nf6 {[%emt 0:00:20]} 2. Nc3 {[%emt 0:00:28]} g6 {
[%emt 0:00:10]} 3. Nf3 {[%emt 0:00:48]} Bg7 {[%emt 0:00:26]} 4. g3 {[%emt 0:00:
00]} O-O {[%emt 0:01:01]} 5. Bg2 {[%emt 0:00:16]} d6 {[%emt 0:00:30]} 6. O-O {
[%emt 0:00:33]} Bf5 {[%emt 0:03:27]} 7. Nh4 {[%emt 0:09:46]} Bc8 {[%emt 0:00:
00]} 8. d3 {[%emt 0:01:18]} Nfd7 {[%emt 0:02:14]} 9. Qc2 {[%emt 0:01:35]} Nc6 {
[%emt 0:00:27]} 10. a3 {[%emt 0:04:18]} e5 {[%emt 0:05:18]} 11. e3 {[%emt 0:00:
00]} Re8 {[%emt 0:04:53]} 12. Rb1 {[%emt 0:01:32]} a5 {[%emt 0:01:00]} 13. Bd2
{[%emt 0:03:56]} Nf6 {[%emt 0:01:06]} 14. Rfc1 {[%emt 0:02:33]} Be6 {[%emt 0:
00:00]} 15. Nd5 {[%emt 0:05:23]} Qc8 {[%emt 0:08:16]} 16. b4 {[%emt 0:19:36]}
axb4 {[%emt 0:05:37]} 17. axb4 {[%emt 0:00:04]} Ne7 {[%emt 0:02:57]} 18. Nxe7+
{[%emt 0:08:57]} Rxe7 {[%emt 0:00:03]} 19. Ra1 {[%emt 0:01:27]} c6 {[%emt 0:00:
00]} 20. Bc3 {[%emt 0:01:52]} Rc7 {[%emt 0:10:50]} 21. Rxa8 {[%emt 0:03:47]}
Qxa8 {[%emt 0:00:04]} 22. c5 {[%emt 0:01:46]} Qd8 {[%emt 0:04:16]} 23. Qb2 {
[%emt 0:04:30]} Qe7 {[%emt 0:05:07]} 24. cxd6 {[%emt 0:00:46]} Qxd6 {[%emt 0:
00:00]} 25. Bxe5 {[%emt 0:01:18]} Ne8 {[%emt 0:02:14]} 26. Bxg7 {[%emt 0:02:51]
} Nxg7 {[%emt 0:00:03]} 27. Qc3 {[%emt 0:00:46]} Nf5 {[%emt 0:04:59]} 28. Nxf5
{[%emt 0:00:45]} Bxf5 {[%emt 0:01:01]} 29. Ra1 {[%emt 0:03:02]} Qd8 {[%emt 0:
00:00]} 30. d4 {[%emt 0:00:47]} Be6 {[%emt 0:01:43]} 31. Qc5 {[%emt 0:02:06]}
Rd7 {[%emt 0:03:16]} 32. b5 {[%emt 0:02:09]} cxb5 {[%emt 0:02:39]} 33. Qxb5 {
[%emt 0:00:06]} Qc8 {[%emt 0:01:13]} 34. d5 {[%emt 0:02:47]} Qc3 {[%emt 0:00:
00]} 35. Rf1 {[%emt 0:02:32]} Bf5 {[%emt 0:01:40]} 36. e4 {[%emt 0:00:16]} Bg4
{[%emt 0:01:16]} 37. h3 {[%emt 0:00:04]} Bxh3 {[%emt 0:03:27]} 38. Bxh3 {
[%emt 0:01:18]} Re7 {[%emt 0:00:38]} 39. Bg2 {[%emt 0:00:38]} Qe5 {[%emt 0:00:
00]} 40. Rc1 {[%emt 0:02:24]} f5 {[%emt 0:00:55]} 41. exf5 {[%emt 0:31:49]}
Qxf5 {[%emt 0:30:26]} 42. Qc5 {[%emt 0:01:01]} Kf7 {[%emt 0:01:57]} 43. d6 {
[%emt 0:00:47]} Rd7 {[%emt 0:00:52]} 44. Qxf5+ {[%emt 0:02:07]} gxf5 {[%emt 0:
00:00]} 45. Rc7 {[%emt 0:00:45]} Ke6 {[%emt 0:00:42]} 46. Bxb7 {[%emt 0:01:15]}
Rxd6 {[%emt 0:00:29]} 47. Rc6 {[%emt 0:00:55]} Rxc6 {[%emt 0:00:47]} 48. Bxc6 {
[%emt 0:00:48]} Kf6 {[%emt 0:00:35]} 49. f4 {[%emt 0:00:06]} Kg6 {[%emt 0:00:
00]} 50. Bd7 {[%emt 0:00:00]} h6 {[%emt 0:00:00]} 51. Kf2 {[%emt 0:00:00]} Kf6
{[%emt 0:00:00]} 52. Ke3 {[%emt 0:00:00]} 1-0

[Event "44th Chess Olympiad Women 2022"]
[Site "Chennai"]
[Date "2022.08.03"]
[Round "6.47"]
[White "Eman Sawan"]
[Black "Mbatha, Constance"]
[Result "1-0"]
[WhiteElo "1847"]
[BlackElo "1614"]
[Annotator "NA RC"]
[PlyCount "81"]
[EventDate "2022.??.??"]
[TimeControl "60"]

1. e4 e5 2. Nf3 d6 3. d4 exd4 4. Nxd4 Nf6 5. Nc3 Be7 6. g3 Bd7 7. Bg2 Nc6 8.
O-O O-O 9. h3 h6 10. Nf5 Re8 11. g4 Bf8 12. h4 Nh7 13. Nd5 Rc8 14. g5 g6 15.
Nxh6+ Bxh6 16. gxh6 Qxh4 17. f4 Bg4 18. Qd3 Qxh6 19. f5 g5 20. Qg3 Be2 21. Rf2
Ba6 22. Bh1 f6 23. Rh2 Qg7 24. Bf3 Nd4 25. Rg2 Nxf3+ 26. Qxf3 c6 27. Nf4 Nf8
28. Nh5 Qe7 29. Bxg5 fxg5 30. f6 Qf7 31. Rxg5+ Ng6 32. Nf4 Re5 33. Rxg6+ Kf8
34. Qg4 b6 35. Rg7 Qxf6 36. Rg8+ Kf7 37. Rg6 Qh8 38. Nd3 Bxd3 39. cxd3 Rf8 40.
Rf1+ Ke7 41. Rg7+ 1-0

[Event "44th Chess Olympiad Women 2022"]
[Site "Chennai"]
[Date "2022.08.03"]
[Round "6.47"]
[White "Phiri Bertha"]
[Black "Seder, Randa"]
[Result "1-0"]
[WhiteElo "1606"]
[BlackElo "1442"]
[Annotator "NA RC"]
[PlyCount "121"]
[EventDate "2022.??.??"]
[TimeControl "60"]

1. e4 {[%emt 0:00:07]} e5 {[%emt 0:00:20]} 2. Nf3 {[%emt 0:00:17]} Nc6 {
[%emt 0:00:26]} 3. Bc4 {[%emt 0:00:52]} Nf6 {[%emt 0:00:36]} 4. d3 {[%emt 0:00:
00]} h6 {[%emt 0:01:14]} 5. Nc3 {[%emt 0:01:37]} Bb4 {[%emt 0:00:32]} 6. Bd2 {
[%emt 0:01:40]} d6 {[%emt 0:01:41]} 7. h3 {[%emt 0:01:14]} O-O {[%emt 0:01:14]}
8. a3 {[%emt 0:01:11]} Ba5 {[%emt 0:01:30]} 9. O-O {[%emt 0:00:28]} Be6 {
[%emt 0:06:04]} 10. Nd5 {[%emt 0:06:06]} Bxd2 {[%emt 0:01:20]} 11. Nxd2 {
[%emt 0:00:50]} Bxd5 {[%emt 0:01:47]} 12. Bxd5 {[%emt 0:01:39]} Nxd5 {[%emt 0:
00:00]} 13. exd5 {[%emt 0:00:07]} Ne7 {[%emt 0:01:40]} 14. c4 {[%emt 0:05:11]}
f5 {[%emt 0:00:39]} 15. b4 {[%emt 0:00:00]} a6 {[%emt 0:05:37]} 16. Qe2 {
[%emt 0:05:46]} Ng6 {[%emt 0:04:45]} 17. g3 {[%emt 0:05:53]} Qg5 {[%emt 0:00:
00]} 18. Kh2 {[%emt 0:00:21]} Rae8 {[%emt 0:09:39]} 19. Rae1 {[%emt 0:05:14]}
Qf6 {[%emt 0:03:07]} 20. Qh5 {[%emt 0:07:24]} Ne7 {[%emt 0:05:43]} 21. Re2 {
[%emt 0:09:51]} g5 {[%emt 0:02:22]} 22. f4 {[%emt 0:02:16]} exf4 {[%emt 0:00:
00]} 23. gxf4 {[%emt 0:03:25]} Ng6 {[%emt 0:01:58]} 24. fxg5 {[%emt 0:08:11]}
Rxe2+ {[%emt 0:00:28]} 25. Qxe2 {[%emt 0:00:10]} hxg5 {[%emt 0:04:15]} 26. Re1
{[%emt 0:05:38]} Nf4 {[%emt 0:01:48]} 27. Qe3 {[%emt 0:05:24]} Qh6 {[%emt 0:00:
00]} 28. Rg1 {[%emt 0:04:53]} g4 {[%emt 0:00:39]} 29. Rg3 {[%emt 0:04:12]} Kh8
{[%emt 0:04:11]} 30. Nb3 {[%emt 0:04:21]} gxh3 {[%emt 0:06:26]} 31. Rf3 {
[%emt 0:03:06]} Qg5 {[%emt 0:00:42]} 32. Rg3 {[%emt 0:01:25]} Qh6 {[%emt 0:00:
00]} 33. Rf3 {[%emt 0:00:38]} Qg5 {[%emt 0:00:59]} 34. Rg3 {[%emt 0:00:14]} Qh6
{[%emt 0:06:44]} 35. Nd4 {[%emt 0:05:01]} Kh7 {[%emt 0:06:28]} 36. Ne6 {
[%emt 0:00:40]} Nh5 {[%emt 0:00:58]} 37. Nxf8+ {[%emt 0:00:45]} Qxf8 {[%emt 0:
00:00]} 38. Rxh3 {[%emt 0:00:43]} Qf7 {[%emt 0:00:20]} 39. Qg5 {[%emt 0:00:43]}
Qg6 {[%emt 0:00:50]} 40. Rxh5+ {[%emt 0:00:13]} Kg7 {[%emt 0:00:22]} 41. Kg3 {
[%emt 0:30:32]} Kf7 {[%emt 0:31:11]} 42. Qxg6+ {[%emt 0:00:07]} Kxg6 {[%emt 0:
00:00]} 43. Rh8 {[%emt 0:00:14]} Kf6 {[%emt 0:00:14]} 44. Kf4 {[%emt 0:00:08]}
b6 {[%emt 0:00:26]} 45. Rf8+ {[%emt 0:00:42]} Ke7 {[%emt 0:00:18]} 46. Rxf5 {
[%emt 0:00:08]} a5 {[%emt 0:00:11]} 47. Rh5 {[%emt 0:00:09]} axb4 {[%emt 0:00:
00]} 48. axb4 {[%emt 0:00:14]} Kd8 {[%emt 0:00:14]} 49. d4 {[%emt 0:00:12]} Kc8
{[%emt 0:00:27]} 50. c5 {[%emt 0:00:13]} bxc5 {[%emt 0:00:17]} 51. dxc5 {
[%emt 0:00:07]} dxc5 {[%emt 0:00:10]} 52. bxc5 {[%emt 0:00:13]} Kd7 {[%emt 0:
00:00]} 53. Ke5 {[%emt 0:00:29]} Ke7 {[%emt 0:00:13]} 54. d6+ {[%emt 0:00:25]}
cxd6+ {[%emt 0:00:16]} 55. cxd6+ {[%emt 0:00:06]} Kd7 {[%emt 0:00:11]} 56. Rh7+
{[%emt 0:00:21]} Kc6 {[%emt 0:00:21]} 57. Rc7+ {[%emt 0:00:10]} Kb5 {[%emt 0:
00:00]} 58. d7 {[%emt 0:00:07]} Kb4 {[%emt 0:00:13]} 59. d8=Q {[%emt 0:00:28]}
Kb3 {[%emt 0:00:07]} 60. Qb8+ {[%emt 0:00:10]} Ka2 {[%emt 0:00:10]} 61. Ra7# {
[%emt 0:00:42]} 1-0

[Event "44th Chess Olympiad Women 2022"]
[Site "Chennai"]
[Date "2022.08.03"]
[Round "6.47"]
[White "Taqwa, Hamouri"]
[Black "Likando Namakau"]
[Result "0-1"]
[WhiteElo "1214"]
[BlackElo "1544"]
[Annotator "NA RC"]
[PlyCount "110"]
[EventDate "2022.??.??"]
[TimeControl "60"]

1. e4 {[%emt 0:00:03]} c5 {[%emt 0:00:19]} 2. Nf3 {[%emt 0:00:10]} Nc6 {
[%emt 0:00:16]} 3. Bb5 {[%emt 0:00:37]} Qc7 {[%emt 0:01:10]} 4. Nc3 {[%emt 0:
00:00]} e6 {[%emt 0:00:38]} 5. d4 {[%emt 0:02:44]} cxd4 {[%emt 0:02:36]} 6.
Nxd4 {[%emt 0:01:32]} Nxd4 {[%emt 0:04:11]} 7. Qxd4 {[%emt 0:01:29]} a6 {
[%emt 0:01:01]} 8. Be2 {[%emt 0:01:35]} Ne7 {[%emt 0:03:24]} 9. Be3 {[%emt 0:
00:00]} Nc6 {[%emt 0:01:38]} 10. Qd1 {[%emt 0:01:53]} Bb4 {[%emt 0:00:55]} 11.
Bd2 {[%emt 0:01:14]} O-O {[%emt 0:05:29]} 12. O-O {[%emt 0:01:29]} Bc5 {
[%emt 0:02:28]} 13. Bd3 {[%emt 0:05:04]} Nb4 {[%emt 0:04:57]} 14. Ne2 {[%emt 0:
00:00]} Nxd3 {[%emt 0:06:38]} 15. cxd3 {[%emt 0:00:15]} Qe5 {[%emt 0:06:05]}
16. Bc3 {[%emt 0:04:52]} Qh5 {[%emt 0:00:38]} 17. d4 {[%emt 0:01:47]} Ba7 {
[%emt 0:01:33]} 18. f4 {[%emt 0:03:13]} d5 {[%emt 0:03:50]} 19. e5 {[%emt 0:00:
00]} Bd7 {[%emt 0:00:45]} 20. Rf3 {[%emt 0:01:47]} Bb5 {[%emt 0:02:21]} 21. Ng3
{[%emt 0:00:56]} Qg6 {[%emt 0:04:14]} 22. Bb4 {[%emt 0:03:23]} Rfc8 {[%emt 0:
00:00]} 23. f5 {[%emt 0:00:48]} Qg4 {[%emt 0:04:23]} 24. Bc3 {[%emt 0:01:04]}
Rc4 {[%emt 0:02:12]} 25. Ne2 {[%emt 0:10:26]} exf5 {[%emt 0:02:51]} 26. Rf4 {
[%emt 0:06:20]} Qh5 {[%emt 0:05:34]} 27. Qe1 {[%emt 0:05:12]} Qh6 {[%emt 0:00:
00]} 28. Bd2 {[%emt 0:02:29]} Qe6 {[%emt 0:01:07]} 29. Bc3 {[%emt 0:05:21]}
Qxe5 {[%emt 0:04:13]} 30. Qf2 {[%emt 0:01:40]} Qe6 {[%emt 0:04:27]} 31. Rxf5 {
[%emt 0:01:15]} Re8 {[%emt 0:01:27]} 32. Ng3 {[%emt 0:01:17]} Rcc8 {[%emt 0:00:
00]} 33. Re1 {[%emt 0:01:57]} Qd7 {[%emt 0:00:50]} 34. Rd1 {[%emt 0:00:42]} f6
{[%emt 0:00:44]} 35. Rf3 {[%emt 0:00:59]} Re6 {[%emt 0:02:02]} 36. Nh5 {
[%emt 0:01:10]} Be2 {[%emt 0:03:04]} 37. Rd2 {[%emt 0:02:36]} Bxf3 {[%emt 0:00:
00]} 38. Qxf3 {[%emt 0:00:20]} Rce8 {[%emt 0:00:47]} 39. Rd3 {[%emt 0:02:16]}
Qf7 {[%emt 0:01:04]} 40. Nf4 {[%emt 0:01:20]} Re4 {[%emt 0:01:11]} 41. Rd2 {
[%emt 0:31:01]} Re1+ {[%emt 0:32:48]} 42. Kf2 {[%emt 0:00:31]} R1e4 {[%emt 0:
00:00]} 43. a3 {[%emt 0:00:57]} Bb8 {[%emt 0:02:35]} 44. Nd3 {[%emt 0:00:51]}
Bd6 {[%emt 0:00:00]} 45. Rc2 {[%emt 0:00:00]} Qg6 {[%emt 0:00:00]} 46. h3 {
[%emt 0:00:00]} Rf4 {[%emt 0:00:00]} 47. Nxf4 {[%emt 0:00:00]} Qxc2+ {[%emt 0:
00:00]} 48. Ne2 {[%emt 0:00:00]} Re4 {[%emt 0:00:00]} 49. Kf1 {[%emt 0:00:00]}
Qb1+ {[%emt 0:00:00]} 50. Kf2 {[%emt 0:00:00]} Qc2 {[%emt 0:00:00]} 51. Qh5 {
[%emt 0:00:00]} f5 {[%emt 0:00:00]} 52. g3 {[%emt 0:00:00]} Bxg3+ {[%emt 0:00:
00]} 53. Kxg3 {[%emt 0:00:00]} Rxe2 {[%emt 0:00:00]} 54. Qh4 {[%emt 0:00:00]}
Re3+ {[%emt 0:00:00]} 55. Kf4 {[%emt 0:00:00]} Re4+ {[%emt 0:00:00]} 0-1

[Event "44th Chess Olympiad Women 2022"]
[Site "Chennai"]
[Date "2022.08.03"]
[Round "6.48"]
[White "Blackman, Katrina"]
[Black "Besa, Masaiti"]
[Result "0-1"]
[WhiteElo "1691"]
[BlackElo "1745"]
[Annotator "NA RC"]
[PlyCount "116"]
[EventDate "2022.??.??"]
[TimeControl "60"]

1. d4 {[%emt 0:00:04]} d5 {[%emt 0:00:20]} 2. Nf3 {[%emt 0:00:03]} Nf6 {
[%emt 0:00:13]} 3. Bf4 {[%emt 0:00:03]} c5 {[%emt 0:00:53]} 4. e3 {[%emt 0:00:
00]} Qb6 {[%emt 0:00:38]} 5. Qc1 {[%emt 0:04:16]} Nc6 {[%emt 0:00:19]} 6. c3 {
[%emt 0:00:08]} Bf5 {[%emt 0:00:21]} 7. Nbd2 {[%emt 0:00:48]} e6 {[%emt 0:00:
00]} 8. h3 {[%emt 0:00:15]} h6 {[%emt 0:00:49]} 9. Be2 {[%emt 0:00:03]} Be7 {
[%emt 0:01:02]} 10. Bh2 {[%emt 0:02:27]} O-O {[%emt 0:00:10]} 11. O-O {[%emt 0:
00:00]} Rfc8 {[%emt 0:01:25]} 12. Ne5 {[%emt 0:08:09]} cxd4 {[%emt 0:03:34]}
13. Nxc6 {[%emt 0:00:22]} bxc6 {[%emt 0:01:21]} 14. exd4 {[%emt 0:01:09]} c5 {
[%emt 0:00:09]} 15. Nf3 {[%emt 0:00:29]} Ne4 {[%emt 0:01:31]} 16. Bd3 {[%emt 0:
00:00]} cxd4 {[%emt 0:02:17]} 17. Nxd4 {[%emt 0:07:48]} Bh7 {[%emt 0:08:09]}
18. Bxe4 {[%emt 0:02:06]} Bxe4 {[%emt 0:00:08]} 19. Qd2 {[%emt 0:00:38]} Bf6 {
[%emt 0:02:15]} 20. Rad1 {[%emt 0:11:44]} Bxd4 {[%emt 0:01:40]} 21. Qxd4 {
[%emt 0:08:35]} Qxb2 {[%emt 0:00:25]} 22. Rc1 {[%emt 0:02:04]} Qxa2 {[%emt 0:
00:00]} 23. Ra1 {[%emt 0:00:18]} Qc4 {[%emt 0:00:12]} 24. Rxa7 {[%emt 0:01:39]}
Rxa7 {[%emt 0:00:09]} 25. Qxa7 {[%emt 0:00:05]} Qxc3 {[%emt 0:00:09]} 26. Bf4 {
[%emt 0:00:36]} Qc5 {[%emt 0:00:37]} 27. Qxc5 {[%emt 0:02:27]} Rxc5 {[%emt 0:
00:00]} 28. Be3 {[%emt 0:00:03]} Rc2 {[%emt 0:00:44]} 29. Rd1 {[%emt 0:00:56]}
Kf8 {[%emt 0:01:11]} 30. Bd4 {[%emt 0:01:13]} f6 {[%emt 0:00:11]} 31. f3 {
[%emt 0:00:30]} Bf5 {[%emt 0:00:13]} 32. Bf2 {[%emt 0:00:46]} Ke7 {[%emt 0:00:
00]} 33. Ra1 {[%emt 0:00:17]} e5 {[%emt 0:00:38]} 34. Ra7+ {[%emt 0:00:09]} Bd7
{[%emt 0:00:14]} 35. Ra1 {[%emt 0:02:27]} d4 {[%emt 0:02:09]} 36. Rd1 {[%emt 0:
00:00]} Kd6 {[%emt 0:00:35]} 37. Bxd4 {[%emt 0:05:18]} exd4 {[%emt 0:00:07]}
38. Rxd4+ {[%emt 0:00:04]} Ke7 {[%emt 0:00:08]} 39. Kh2 {[%emt 0:01:05]} Bb5 {
[%emt 0:00:36]} 40. Rd1 {[%emt 0:00:33]} g5 {[%emt 0:00:21]} 41. Kg3 {[%emt 0:
00:00]} Kf7 {[%emt 0:30:09]} 42. Rg1 {[%emt 0:00:24]} Kg6 {[%emt 0:00:10]} 43.
h4 {[%emt 0:00:20]} f5 {[%emt 0:00:35]} 44. hxg5 {[%emt 0:00:19]} hxg5 {
[%emt 0:00:04]} 45. Re1 {[%emt 0:00:52]} Kf6 {[%emt 0:00:40]} 46. Kh3 {[%emt 0:
00:00]} Bc6 {[%emt 0:00:42]} 47. Kg3 {[%emt 0:01:40]} f4+ {[%emt 0:01:06]} 48.
Kh3 {[%emt 0:00:29]} Bd7+ {[%emt 0:01:30]} 49. Kh2 {[%emt 0:00:06]} Be6 {
[%emt 0:00:51]} 50. Kg1 {[%emt 0:00:17]} Kf5 {[%emt 0:00:19]} 51. Kh1 {[%emt 0:
00:00]} Bd5 {[%emt 0:00:19]} 52. Kg1 {[%emt 0:00:43]} Rd2 {[%emt 0:00:17]} 53.
Rf1 {[%emt 0:00:17]} g4 {[%emt 0:00:13]} 54. fxg4+ {[%emt 0:01:06]} Kxg4 {
[%emt 0:00:08]} 55. Rf2 {[%emt 0:00:00]} Rxf2 {[%emt 0:02:22]} 56. Kxf2 {
[%emt 0:00:02]} Be4 {[%emt 0:00:07]} 57. g3 {[%emt 0:01:05]} fxg3+ {[%emt 0:00:
00]} 58. Kg1 {[%emt 0:00:23]} Kh3 {[%emt 0:00:07]} 0-1

[Event "44th Chess Olympiad Women 2022"]
[Site "Chennai"]
[Date "2022.08.03"]
[Round "6.48"]
[White "Eversley, Kiarra"]
[Black "Banda Natalie Katlo"]
[Result "1-0"]
[WhiteElo "1356"]
[BlackElo "1688"]
[Annotator "NA RC"]
[PlyCount "121"]
[EventDate "2022.??.??"]
[TimeControl "60"]

1. e4 {[%emt 0:00:05]} c6 {[%emt 0:00:08]} 2. d4 {[%emt 0:00:05]} d5 {[%emt 0:
00:00]} 3. exd5 {[%emt 0:01:34]} cxd5 {[%emt 0:01:00]} 4. Bd3 {[%emt 0:00:15]}
Nf6 {[%emt 0:00:11]} 5. c3 {[%emt 0:01:16]} Bg4 {[%emt 0:00:31]} 6. Nf3 {
[%emt 0:03:16]} e6 {[%emt 0:01:27]} 7. h3 {[%emt 0:00:20]} Bh5 {[%emt 0:00:28]}
8. Bf4 {[%emt 0:00:35]} Bd6 {[%emt 0:00:35]} 9. Bxd6 {[%emt 0:00:27]} Qxd6 {
[%emt 0:00:08]} 10. Nbd2 {[%emt 0:00:37]} Nc6 {[%emt 0:01:20]} 11. O-O {
[%emt 0:01:34]} Bg6 {[%emt 0:02:30]} 12. Qe2 {[%emt 0:03:47]} Bxd3 {[%emt 0:00:
00]} 13. Qxd3 {[%emt 0:00:14]} h5 {[%emt 0:01:20]} 14. Rfe1 {[%emt 0:01:52]}
Nd7 {[%emt 0:11:10]} 15. Qf5 {[%emt 0:02:59]} g6 {[%emt 0:02:12]} 16. Qg5 {
[%emt 0:02:39]} Qe7 {[%emt 0:03:16]} 17. Qe3 {[%emt 0:03:21]} O-O-O {[%emt 0:
00:00]} 18. a4 {[%emt 0:02:38]} Rdg8 {[%emt 0:02:52]} 19. a5 {[%emt 0:00:41]}
g5 {[%emt 0:00:22]} 20. b4 {[%emt 0:01:46]} g4 {[%emt 0:00:27]} 21. Ne5 {
[%emt 0:00:51]} Ncxe5 {[%emt 0:00:30]} 22. dxe5 {[%emt 0:00:06]} gxh3 {[%emt 0:
00:00]} 23. Qxh3 {[%emt 0:00:34]} Rg5 {[%emt 0:03:21]} 24. Nf3 {[%emt 0:01:06]}
Rg4 {[%emt 0:04:42]} 25. Nh2 {[%emt 0:07:24]} Rh4 {[%emt 0:02:03]} 26. Qg3 {
[%emt 0:01:04]} Rc4 {[%emt 0:05:35]} 27. Re3 {[%emt 0:09:11]} h4 {[%emt 0:00:
00]} 28. Qg7 {[%emt 0:01:06]} Rh5 {[%emt 0:02:04]} 29. Rae1 {[%emt 0:05:17]} h3
{[%emt 0:03:26]} 30. g3 {[%emt 0:07:38]} Qf8 {[%emt 0:07:37]} 31. Qxf8+ {
[%emt 0:01:51]} Nxf8 {[%emt 0:00:26]} 32. Nf3 {[%emt 0:01:01]} Nh7 {[%emt 0:00:
00]} 33. Kh2 {[%emt 0:00:27]} Rg4 {[%emt 0:03:32]} 34. Ng1 {[%emt 0:02:54]} Ng5
{[%emt 0:01:24]} 35. f4 {[%emt 0:00:26]} Ne4 {[%emt 0:00:45]} 36. c4 {[%emt 0:
00:00]} Nxg3 {[%emt 0:13:01]} 37. Rxg3 {[%emt 0:01:11]} Rxg3 {[%emt 0:00:12]}
38. Kxg3 {[%emt 0:00:12]} h2 {[%emt 0:01:10]} 39. Nh3 {[%emt 0:00:18]} dxc4 {
[%emt 0:00:49]} 40. Kxh2 {[%emt 0:00:26]} b5 {[%emt 0:00:21]} 41. axb6 {
[%emt 0:30:19]} axb6 {[%emt 0:30:08]} 42. Kg3 {[%emt 0:02:22]} Rh8 {[%emt 0:00:
00]} 43. b5 {[%emt 0:03:44]} Rd8 {[%emt 0:01:21]} 44. Rc1 {[%emt 0:00:17]} Rd3+
{[%emt 0:00:45]} 45. Kg4 {[%emt 0:02:11]} c3 {[%emt 0:02:21]} 46. Ng5 {[%emt 0:
00:00]} Kd7 {[%emt 0:04:16]} 47. Nxf7 {[%emt 0:00:20]} Rd5 {[%emt 0:01:43]} 48.
Nd6 {[%emt 0:00:11]} Rc5 {[%emt 0:00:19]} 49. Kf3 {[%emt 0:02:11]} c2 {[%emt 0:
00:00]} 50. Ke2 {[%emt 0:01:44]} Rc3 {[%emt 0:00:37]} 51. Ne4 {[%emt 0:01:29]}
Rc4 {[%emt 0:00:23]} 52. Kd3 {[%emt 0:00:59]} Rb4 {[%emt 0:00:09]} 53. Rxc2 {
[%emt 0:00:35]} Rxb5 {[%emt 0:00:07]} 54. Kc4 {[%emt 0:01:00]} Ra5 {[%emt 0:00:
00]} 55. Kb4 {[%emt 0:01:37]} Ra8 {[%emt 0:00:23]} 56. Kb5 {[%emt 0:01:08]} Rb8
{[%emt 0:00:35]} 57. Rc6 {[%emt 0:00:37]} Rh8 {[%emt 0:00:56]} 58. Nf6+ {
[%emt 0:00:45]} Ke7 {[%emt 0:00:12]} 59. Rc7+ {[%emt 0:01:49]} Kd8 {[%emt 0:00:
00]} 60. Kxb6 {[%emt 0:00:07]} Rh4 {[%emt 0:00:21]} 61. Kb7 {[%emt 0:00:26]}
1-0

[Event "44th Chess Olympiad Women 2022"]
[Site "Chennai"]
[Date "2022.08.03"]
[Round "6.48"]
[White "Marape, Naledi"]
[Black "Wilson, Hannah"]
[Result "0-1"]
[WhiteElo "1714"]
[BlackElo "1556"]
[Annotator "NA RC"]
[PlyCount "132"]
[EventDate "2022.??.??"]
[TimeControl "60"]

1. e4 {[%emt 0:00:05]} c5 {[%emt 0:00:11]} 2. Nf3 {[%emt 0:00:06]} g6 {[%emt 0:
00:00]} 3. d4 {[%emt 0:00:06]} cxd4 {[%emt 0:00:17]} 4. Nxd4 {[%emt 0:00:17]}
Nc6 {[%emt 0:00:26]} 5. Bc4 {[%emt 0:01:37]} Bg7 {[%emt 0:01:04]} 6. Be3 {
[%emt 0:00:09]} Nf6 {[%emt 0:00:57]} 7. Nc3 {[%emt 0:00:46]} O-O {[%emt 0:00:
00]} 8. Bb3 {[%emt 0:01:15]} d6 {[%emt 0:01:30]} 9. f3 {[%emt 0:00:19]} Bd7 {
[%emt 0:00:50]} 10. Qd2 {[%emt 0:00:05]} Nxd4 {[%emt 0:00:58]} 11. Bxd4 {
[%emt 0:00:13]} b5 {[%emt 0:00:54]} 12. O-O-O {[%emt 0:00:13]} a5 {[%emt 0:00:
00]} 13. Bd5 {[%emt 0:07:14]} Rc8 {[%emt 0:17:34]} 14. g4 {[%emt 0:19:09]} Qc7
{[%emt 0:03:48]} 15. g5 {[%emt 0:11:10]} Nh5 {[%emt 0:09:27]} 16. Bxg7 {
[%emt 0:02:05]} Nxg7 {[%emt 0:01:59]} 17. a3 {[%emt 0:05:40]} Rb8 {[%emt 0:00:
00]} 18. Ba2 {[%emt 0:01:36]} Be6 {[%emt 0:10:56]} 19. Bxe6 {[%emt 0:00:32]}
fxe6 {[%emt 0:01:52]} 20. Qe3 {[%emt 0:06:30]} Rfc8 {[%emt 0:03:46]} 21. Rd2 {
[%emt 0:00:56]} b4 {[%emt 0:02:21]} 22. Nb1 {[%emt 0:01:31]} Rb5 {[%emt 0:00:
00]} 23. c3 {[%emt 0:03:58]} Rc5 {[%emt 0:01:43]} 24. Kd1 {[%emt 0:01:19]} Qc6
{[%emt 0:01:43]} 25. Ke1 {[%emt 0:01:16]} Qb5 {[%emt 0:01:16]} 26. h4 {[%emt 0:
00:00]} Nh5 {[%emt 0:02:54]} 27. Kf2 {[%emt 0:02:07]} e5 {[%emt 0:02:46]} 28.
Qe2 {[%emt 0:09:05]} Qb6 {[%emt 0:01:45]} 29. Qe3 {[%emt 0:00:22]} Nf4 {
[%emt 0:01:54]} 30. cxb4 {[%emt 0:06:48]} axb4 {[%emt 0:03:58]} 31. axb4 {
[%emt 0:02:27]} Qxb4 {[%emt 0:00:28]} 32. Nc3 {[%emt 0:00:09]} Rc4 {[%emt 0:00:
00]} 33. Ra1 {[%emt 0:01:41]} Qb8 {[%emt 0:01:47]} 34. Qa7 {[%emt 0:03:15]}
R4c7 {[%emt 0:03:06]} 35. Qxb8 {[%emt 0:01:03]} Rxb8 {[%emt 0:00:04]} 36. Nd5 {
[%emt 0:06:54]} Rcb7 {[%emt 0:00:53]} 37. Rb1 {[%emt 0:01:13]} Kf7 {[%emt 0:00:
00]} 38. Nxf4 {[%emt 0:00:29]} exf4 {[%emt 0:00:08]} 39. Kg2 {[%emt 0:01:13]}
Rb3 {[%emt 0:00:41]} 40. Rf2 {[%emt 0:00:16]} e5 {[%emt 0:00:39]} 41. Rd2 {
[%emt 0:31:29]} R8b6 {[%emt 0:30:45]} 42. Kf2 {[%emt 0:00:54]} Ke6 {[%emt 0:00:
00]} 43. Kg2 {[%emt 0:00:38]} R6b4 {[%emt 0:00:19]} 44. Kf2 {[%emt 0:00:43]}
Re3 {[%emt 0:00:56]} 45. Kg2 {[%emt 0:00:45]} Rbb3 {[%emt 0:00:53]} 46. Rbd1 {
[%emt 0:00:59]} Rb6 {[%emt 0:01:05]} 47. Rc1 {[%emt 0:00:40]} Reb3 {[%emt 0:00:
00]} 48. Rcc2 {[%emt 0:01:26]} R3b4 {[%emt 0:00:27]} 49. Kh3 {[%emt 0:00:58]}
Rb3 {[%emt 0:01:52]} 50. Kg4 {[%emt 0:00:13]} R6b4 {[%emt 0:00:56]} 51. Rc6 {
[%emt 0:00:00]} Rxb2 {[%emt 0:00:00]} 52. Rcxd6+ {[%emt 0:00:00]} Kf7 {[%emt 0:
00:00]} 53. h5 {[%emt 0:00:00]} Rxd2 {[%emt 0:00:00]} 54. Rxd2 {[%emt 0:00:00]}
Rb1 {[%emt 0:00:00]} 55. hxg6+ {[%emt 0:00:00]} hxg6 {[%emt 0:00:00]} 56. Kh3 {
[%emt 0:00:00]} Rh1+ {[%emt 0:00:00]} 57. Rh2 {[%emt 0:00:00]} Rxh2+ {[%emt 0:
00:00]} 58. Kxh2 {[%emt 0:00:00]} Ke6 {[%emt 0:00:00]} 59. Kg2 {[%emt 0:00:49]}
Kd6 {[%emt 0:00:00]} 60. Kf2 {[%emt 0:03:34]} Kc5 {[%emt 0:00:00]} 61. Ke1 {
[%emt 0:00:35]} Kc4 {[%emt 0:00:00]} 62. Ke2 {[%emt 0:00:11]} Kc3 {[%emt 0:00:
00]} 63. Ke1 {[%emt 0:00:16]} Kd3 {[%emt 0:00:00]} 64. Kf2 {[%emt 0:01:06]} Kd2
{[%emt 0:00:00]} 65. Kg1 {[%emt 0:00:19]} Ke3 {[%emt 0:00:00]} 66. Kg2 {
[%emt 0:00:07]} Ke2 {[%emt 0:00:00]} 0-1